Workbook

Sheet 收入支出决算总表
A1: 附件3:
B2: 收入支出决算总表
D3: 公开01表
A4: 公开部门：重庆市江津区生态环境局 | D4: 单位：万元
A5: 收入 | B5: 收入 | C5: 支出 | D5: 支出
A6: 项目 | B6: 决算数 | C6: 功能分类科目 | D6: 决算数
A7: 一、财政拨款收入 | B7: 10,127.02 | C7: 一、一般公共服务支出
A8: 二、上级补助收入 | C8: 二、外交支出
A9: 三、事业收入 | C9: 三、国防支出
A10: 四、经营收入 | C10: 四、公共安全支出
A11: 五、附属单位上缴收入 | C11: 五、教育支出 | D11: 12.03
A12: 六、其他收入 | B12: 174.73 | C12: 六、科学技术支出
C13: 七、文化旅游体育与传媒支出
C14: 八、社会保障和就业支出 | D14: 246.09
C15: 九、卫生健康支出 | D15: 112.74
C16: 十、节能环保支出 | D16: 9,217.80
C17: 十一、城乡社区支出
C18: 十二、农林水支出
C19: 十三、交通运输支出
C20: 十四、资源勘探信息等支出
C21: 十五、商业服务业等支出
C22: 十六、金融支出
C23: 十七、援助其他地区支出
C24: 十八、自然资源海洋气象等支出
C25: 十九、住房保障支出 | D25: 96.24
C26: 二十、粮油物资储备支出
C27: 二十一、国有资本经营预算支出
C28: 二十二、灾害防治及应急管理支出
C29: 二十三、其他支出
C30: 二十四、债务还本支出
C31: 二十五、债务付息支出
C32: 二十六、抗疫特别国债安排的支出
A33: 本年收入合计 | B33: 10,301.75 | C33: 本年支出合计 | D33: 9,684.90
A34: 用事业基金弥补收支差额 | C34: 结余分配
A35: 年初结转和结余 | B35: 3,686.43 | C35: 年末结转和结余 | D35: 4,303.28
A36: 总计 | B36: 13,988.18 | C36: 总计 | D36: 13,988.18
A37: 备注：本表反映部门本年度的总收支和年末结转结余等情况。

Sheet 收入决算表
D1: 收入决算表
J2: 公开02表
A3: 公开部门：重庆市江津区生态环境局 | J3: 单位：万元
A4: 项目 | B4: 项目 | C4: 本年收入合计 | D4: 财政拨款收入 | E4: 上级补助收入 | F4: 事业收入 | G4: 事业收入 | H4: 经营收入 | I4: 附属单位上缴收入 | J4: 其他收入
A5: 功能分类科目编码 | B5: 项目（按“项”级功能分类科目） | C5: 本年收入合计 | D5: 财政拨款收入 | E5: 上级补助收入 | F5: 事业收入 | G5: 事业收入 | H5: 经营收入 | I5: 附属单位上缴收入 | J5: 其他收入
A6: 功能分类科目编码 | B6: 项目（按“项”级功能分类科目） | C6: 本年收入合计 | D6: 财政拨款收入 | E6: 上级补助收入 | F6: 小计 | G6: 其中：教育收费 | H6: 经营收入 | I6: 附属单位上缴收入 | J6: 其他收入
A7: 功能分类科目编码 | B7: 项目（按“项”级功能分类科目） | C7: 本年收入合计 | D7: 财政拨款收入 | E7: 上级补助收入 | F7: 小计 | G7: 其中：教育收费 | H7: 经营收入 | I7: 附属单位上缴收入 | J7: 其他收入
A8: 合计 | B8: 合计 | C8: =C9+C12+C19+C25+C43 -> 10,301.75 | D8: =D9+D12+D19+D25+D43 -> 10,127.02 | J8: 174.73
A9: 205 | B9: 教育支出 | C9: 12.03 | D9: 12.03
A10: 20508 | B10: 进修及培训 | C10: 12.03 | D10: 12.03
A11: 2050803 | B11: 培训支出 | C11: 12.03 | D11: 12.03
A12: 208 | B12: 社会保障和就业支出 | C12: 246.09 | D12: 246.09
A13: 20805 | B13: 行政事业单位养老支出 | C13: 223.77 | D13: 223.77
A14: 2080505 | B14: 机关事业单位基本养老保险缴费支出 | C14: 115.43 | D14: 115.43
A15: 2080506 | B15: 机关事业单位职业年金缴费支出 | C15: 63.22 | D15: 63.22
A16: 2080599 | B16: 其他行政事业单位养老支出 | C16: 45.12 | D16: 45.12
A17: 20808 | B17: 抚恤 | C17: 22.32 | D17: 22.32
A18: 2080801 | B18: 死亡抚恤 | C18: 22.32 | D18: 22.32
A19: 210 | B19: 卫生健康支出 | C19: 112.74 | D19: 112.74
A20: 21011 | B20: 行政事业单位医疗 | C20: 112.74 | D20: 112.74
A21: 2101101 | B21: 行政单位医疗 | C21: 40.39 | D21: 40.39
A22: 2101102 | B22: 事业单位医疗 | C22: 39.40 | D22: 39.40
A23: 2101103 | B23: 公务员医疗补助 | C23: 13.04 | D23: 13.04
A24: 2101199 | B24: 其他行政事业单位医疗支出 | C24: 19.91 | D24: 19.91
A25: 211 | B25: 节能环保支出 | C25: =C26+C30+C32+C37+C39 -> 9,834.65 | D25: =D26+D30+D32+D37+D39 -> 9,659.92 | J25: 174.73
A26: 21101 | B26: 环境保护管理事务 | C26: 1,602.14 | D26: 1,602.14
A27: 2110101 | B27: 行政运行 | C27: 956.15 | D27: 956.15
A28: 2110102 | B28: 一般行政管理事务 | C28: 597.99 | D28: 597.99
A29: 2110104 | B29: 生态环境保护宣传 | C29: 48.00 | D29: 48.00
A30: 21102 | B30: 环境监测与监察 | C30: 37.86 | D30: 37.86
A31: 2110299 | B31: 其他环境监测与监察支出 | C31: 37.86 | D31: 37.86
A32: 21103 | B32: 污染防治 | C32: 6,804.73 | D32: 6,704.73 | J32: 100.00
A33: 2110301 | B33: 大气 | C33: 1,668.00 | D33: 1,668.00
A34: 2110302 | B34: 水体 | C34: 5,030.73 | D34: 4,930.73 | J34: 100.00
A35: 2110303 | B35: 噪声 | C35: 6.00 | D35: 6.00
A36: 2110304 | B36: 固体废弃物与化学品 | C36: 100.00 | D36: 100.00
A37: 21104 | B37: 自然生态保护 | C37: 179.01 | D37: 179.01
A38: 2110402 | B38: 农村环境保护 | C38: 179.01 | D38: 179.01
A39: 21111 | B39: 污染减排 | C39: 1,210.91 | D39: 1,136.18 | J39: 74.73
A40: 2111101 | B40: 生态环境监测与信息 | C40: 1,180.83 | D40: 1,106.10 | J40: 74.73
A41: 2111102 | B41: 生态环境执法监察 | C41: 27.84 | D41: 27.84
A42: 2111104 | B42: 清洁生产专项支出 | C42: 2.24 | D42: 2.24
A43: 221 | B43: 住房保障支出 | C43: 96.24 | D43: 96.24
A44: 22102 | B44: 住房改革支出 | C44: 96.24 | D44: 96.24
A45: 2210201 | B45: 住房公积金 | C45: 96.24 | D45: 96.24
A46: 备注：本表反映部门本年度取得的各项收入情况。 | B46: 备注：本表反映部门本年度取得的各项收入情况。 | C46: 备注：本表反映部门本年度取得的各项收入情况。 | D46: 备注：本表反映部门本年度取得的各项收入情况。 | E46: 备注：本表反映部门本年度取得的各项收入情况。 | F46: 备注：本表反映部门本年度取得的各项收入情况。 | G46: 备注：本表反映部门本年度取得的各项收入情况。 | H46: 备注：本表反映部门本年度取得的各项收入情况。 | I46: 备注：本表反映部门本年度取得的各项收入情况。 | J46: 备注：本表反映部门本年度取得的各项收入情况。

Sheet 支出决算表
C1: 支出决算表
H2: 公开03表
A3: 公开部门：重庆市江津区生态环境局 | H3: 单位：万元
A4: 项目 | B4: 项目 | C4: 本年支出合计 | D4: 基本支出 | E4: 项目支出 | F4: 上缴上级支出 | G4: 经营支出 | H4: 对附属单位补助支出
A5: 功能分类科目编码 | B5: 项目（按“项”级功能分类科目） | C5: 本年支出合计 | D5: 基本支出 | E5: 项目支出 | F5: 上缴上级支出 | G5: 经营支出 | H5: 对附属单位补助支出
A6: 功能分类科目编码 | B6: 项目（按“项”级功能分类科目） | C6: 本年支出合计 | D6: 基本支出 | E6: 项目支出 | F6: 上缴上级支出 | G6: 经营支出 | H6: 对附属单位补助支出
A7: 功能分类科目编码 | B7: 项目（按“项”级功能分类科目） | C7: 本年支出合计 | D7: 基本支出 | E7: 项目支出 | F7: 上缴上级支出 | G7: 经营支出 | H7: 对附属单位补助支出
A8: 合计 | B8: 合计 | C8: =C9+C12+C19+C25+C45 -> 9,684.90 | D8: =D9+D12+D19+D25+D45 -> 2,345.98 | E8: 7,338.92
A9: 205 | B9: 教育支出 | C9: 12.03 | D9: 12.03
A10: 20508 | B10: 进修及培训 | C10: 12.03 | D10: 12.03
A11: 2050803 | B11: 培训支出 | C11: 12.03 | D11: 12.03
A12: 208 | B12: 社会保障和就业支出 | C12: 246.09 | D12: 246.09
A13: 20805 | B13: 行政事业单位养老支出 | C13: 223.77 | D13: 223.77
A14: 2080505 | B14: 机关事业单位基本养老保险缴费支出 | C14: 115.43 | D14: 115.43
A15: 2080506 | B15: 机关事业单位职业年金缴费支出 | C15: 63.22 | D15: 63.22
A16: 2080599 | B16: 其他行政事业单位养老支出 | C16: 45.12 | D16: 45.12
A17: 20808 | B17: 抚恤 | C17: 22.32 | D17: 22.32
A18: 2080801 | B18: 死亡抚恤 | C18: 22.32 | D18: 22.32
A19: 210 | B19: 卫生健康支出 | C19: 112.74 | D19: 112.74
A20: 21011 | B20: 行政事业单位医疗 | C20: 112.74 | D20: 112.74
A21: 2101101 | B21: 行政单位医疗 | C21: 40.39 | D21: 40.39
A22: 2101102 | B22: 事业单位医疗 | C22: 39.40 | D22: 39.40
A23: 2101103 | B23: 公务员医疗补助 | C23: 13.04 | D23: 13.04
A24: 2101199 | B24: 其他行政事业单位医疗支出 | C24: 19.91 | D24: 19.91
A25: 211 | B25: 节能环保支出 | C25: =C26+C31+C33+C37+C39+C43 -> 9,217.80 | D25: =D26+D31+D33+D37+D39+D43 -> 1,878.88 | E25: 7,338.92
A26: 21101 | B26: 环境保护管理事务 | C26: 1,618.53 | D26: 956.15 | E26: 662.38
A27: 2110101 | B27: 行政运行 | C27: 956.15 | D27: 956.15
A28: 2110102 | B28: 一般行政管理事务 | C28: 597.99 | E28: 597.99
A29: 2110104 | B29: 生态环境保护宣传 | C29: 48.00 | E29: 48.00
A30: 2110199 | B30: 其他环境保护管理事务支出 | C30: 16.39 | E30: 16.39
A31: 21102 | B31: 环境监测与监察 | C31: 18.21 | E31: 18.21
A32: 2110299 | B32: 其他环境监测与监察支出 | C32: 18.21 | E32: 18.21
A33: 21103 | B33: 污染防治 | C33: 4,098.77 | E33: 4,098.77
A34: 2110301 | B34: 大气 | C34: 667.24 | E34: 667.24
A35: 2110302 | B35: 水体 | C35: 3,425.53 | E35: 3,425.53
A36: 2110303 | B36: 噪声 | C36: 6.00 | E36: 6.00
A37: 21104 | B37: 自然生态保护 | C37: 179.01 | E37: 179.01
A38: 2110402 | B38: 农村环境保护 | C38: 179.01 | E38: 179.01
A39: 21111 | B39: 污染减排 | C39: 1,419.48 | D39: 922.73 | E39: 496.75
A40: 2111101 | B40: 生态环境监测与信息 | C40: 1,389.40 | D40: 922.73 | E40: 466.67
A41: 2111102 | B41: 生态环境执法监察 | C41: 27.84 | E41: 27.84
A42: 2111104 | B42: 清洁生产专项支出 | C42: 2.24 | E42: 2.24
A43: 21199 | B43: 其他节能环保支出 | C43: 1,883.80 | E43: 1,883.80
A44: 2119901 | B44: 其他节能环保支出 | C44: 1,883.80 | E44: 1,883.80
A45: 221 | B45: 住房保障支出 | C45: 96.24 | D45: 96.24
A46: 22102 | B46: 住房改革支出 | C46: 96.24 | D46: 96.24
A47: 2210201 | B47: 住房公积金 | C47: 96.24 | D47: 96.24
A48: 备注：本表反映部门本年度各项支出情况。 | B48: 备注：本表反映部门本年度各项支出情况。 | C48: 备注：本表反映部门本年度各项支出情况。 | D48: 备注：本表反映部门本年度各项支出情况。 | E48: 备注：本表反映部门本年度各项支出情况。 | F48: 备注：本表反映部门本年度各项支出情况。 | G48: 备注：本表反映部门本年度各项支出情况。 | H48: 备注：本表反映部门本年度各项支出情况。

Sheet 财政拨款收入支出决算总表
D1: 财政拨款收入支出决算总表
G2: 公开04表
A3: 公开部门：重庆市江津区生态环境局 | G3: 单位：万元
A4: 收 入 | B4: 收 入 | C4: 支 出 | D4: 支 出 | E4: 支 出 | F4: 支 出 | G4: 支 出
A5: 项 目 | B5: 决算数 | C5: 功能分类科目 | D5: 决算数 | E5: 决算数 | F5: 决算数 | G5: 决算数
A6: 项 目 | B6: 决算数 | C6: 功能分类科目 | D6: 小计 | E6: 一般公共预算财政拨款 | F6: 政府性基金预算财政拨款 | G6: 国有资本经营预算财政拨款
A7: 一、一般公共预算财政拨款 | B7: 10,127.02 | C7: 一、一般公共服务支出
A8: 二、政府性基金预算财政拨款 | C8: 二、外交支出
A9: 三、国有资本经营预算财政拨款 | C9: 三、国防支出
C10: 四、公共安全支出
C11: 五、教育支出 | D11: 12.03 | E11: 12.03
C12: 六、科学技术支出
C13: 七、文化旅游体育与传媒支出
C14: 八、社会保障和就业支出 | D14: 246.09 | E14: 246.09
C15: 九、卫生健康支出 | D15: 112.74 | E15: 112.74
C16: 十、节能环保支出 | D16: 9,193.76 | E16: 9,193.76
C17: 十一、城乡社区支出
C18: 十二、农林水支出
C19: 十三、交通运输支出
C20: 十四、资源勘探工业信息等支出
C21: 十五、商业服务业等支出
C22: 十六、金融支出
C23: 十七、援助其他地区支出
C24: 十八、自然资源海洋气象等支出
C25: 十九、住房保障支出 | D25: 96.24 | E25: 96.24
C26: 二十、粮油物资储备支出
C27: 二十一、国有资本经营预算支出
C28: 二十二、灾害防治及应急管理支出
C29: 二十三、其他支出
C30: 二十四、债务还本支出
A31: 本年收入合计 | B31: 10,127.02 | C31: 二十五、债务付息支出
A32: 年初财政拨款结转和结余 | B32: 3,585.66 | C32: 二十六、抗疫特别国债安排的支出
A33: 一、一般公共预算财政拨款 | B33: 3,585.66 | C33: 本年支出合计 | D33: 9,660.86 | E33: 9,660.86
A34: 二、政府性基金预算财政拨款 | C34: 年末财政拨款结转和结余 | D34: 4,051.82 | E34: 4,051.82
A35: 三、国有资本经营预算财政拨款
A36: 总计 | B36: 13,712.68 | C36: 总计 | D36: 13,712.68 | E36: 13,712.68
A37: 备注：本表反映部门本年度一般公共预算财政拨款、政府性基金财政拨款和国有资本经营预算财政拨款的总收支和年末结转结余情况。 | B37: 备注：本表反映部门本年度一般公共预算财政拨款和政府性基金预算财政拨款的总收支和年末结转结余情况。 | C37: 备注：本表反映部门本年度一般公共预算财政拨款和政府性基金预算财政拨款的总收支和年末结转结余情况。 | D37: 备注：本表反映部门本年度一般公共预算财政拨款和政府性基金预算财政拨款的总收支和年末结转结余情况。 | E37: 备注：本表反映部门本年度一般公共预算财政拨款和政府性基金预算财政拨款的总收支和年末结转结余情况。 | F37: 备注：本表反映部门本年度一般公共预算财政拨款和政府性基金预算财政拨款的总收支和年末结转结余情况。

Sheet 一般公共预算财政拨款收入支出决算表
C1: 一般公共预算财政拨款收入支出决算表
H2: 公开05表
A3: 公开部门：重庆市江津区生态环境局 | H3: 单位：万元
A4: 项目 | B4: 项目 | C4: 年初结转结余 | D4: 本年收入 | E4: 本年支出 | F4: 本年支出 | G4: 本年支出 | H4: 年末结转和结余
A5: 功能分类科目编码 | B5: 项目（按“项”级功能分类科目） | C5: 年初结转结余 | D5: 本年收入 | E5: 合计 | F5: 基本支出 | G5: 项目支出 | H5: 年末结转和结余
A6: 功能分类科目编码 | B6: 项目（按“项”级功能分类科目） | C6: 年初结转结余 | D6: 本年收入 | E6: 合计 | F6: 基本支出 | G6: 项目支出 | H6: 年末结转和结余
A7: 功能分类科目编码 | B7: 项目（按“项”级功能分类科目） | C7: 年初结转结余 | D7: 本年收入 | E7: 合计 | F7: 基本支出 | G7: 项目支出 | H7: 年末结转和结余
A8: 合计 | B8: 合计 | C8: 3,585.66 | D8: =D9+D12+D19+D25+D46 -> 10,127.02 | E8: =E9+E12+E19+E25+E46 -> 9,660.86 | F8: 2,345.98 | G8: 7,314.88 | H8: 4,051.82
A9: 205 | B9: 教育支出 | D9: 12.03 | E9: =SUM(F9:G9) -> 12.03 | F9: 12.03
A10: 20508 | B10: 进修及培训 | D10: 12.03 | E10: =SUM(F10:G10) -> 12.03 | F10: 12.03
A11: 2050803 | B11: 培训支出 | D11: 12.03 | E11: 12.03 | F11: 12.03
A12: 208 | B12: 社会保障和就业支出 | D12: 246.09 | E12: 246.09 | F12: 246.09
A13: 20805 | B13: 行政事业单位养老支出 | D13: 223.77 | E13: 223.77 | F13: 223.77
A14: 2080505 | B14: 机关事业单位基本养老保险缴费支出 | D14: 115.43 | E14: 115.43 | F14: 115.43
A15: 2080506 | B15: 机关事业单位职业年金缴费支出 | D15: 63.22 | E15: 63.22 | F15: 63.22
A16: 2080599 | B16: 其他行政事业单位养老支出 | D16: 45.12 | E16: 45.12 | F16: 45.12
A17: 20808 | B17: 抚恤 | D17: 22.32 | E17: 22.32 | F17: 22.32
A18: 2080801 | B18: 死亡抚恤 | D18: 22.32 | E18: 22.32 | F18: 22.32
A19: 210 | B19: 卫生健康支出 | D19: 112.74 | E19: 112.74 | F19: 112.74
A20: 21011 | B20: 行政事业单位医疗 | D20: 112.74 | E20: 112.74 | F20: 112.74
A21: 2101101 | B21: 行政单位医疗 | D21: 40.39 | E21: 40.39 | F21: 40.39
A22: 2101102 | B22: 事业单位医疗 | D22: 39.40 | E22: 39.40 | F22: 39.40
A23: 2101103 | B23: 公务员医疗补助 | D23: 13.04 | E23: 13.04 | F23: 13.04
A24: 2101199 | B24: 其他行政事业单位医疗支出 | D24: 19.91 | E24: 19.91 | F24: 19.91
A25: 211 | B25: 节能环保支出 | C25: =C26+C31+C33+C38+C40+C44 -> 3,585.66 | D25: =D26+D31+D33+D38+D40+D44 -> 9,659.92 | E25: 9,193.76 | F25: 1,878.88 | G25: 7,314.88 | H25: 4,051.82
A26: 21101 | B26: 环境保护管理事务 | C26: 64.47 | D26: 1,602.14 | E26: 1,618.53 | F26: 956.15 | G26: 662.38 | H26: 48.08
A27: 2110101 | B27: 行政运行 | D27: 956.15 | E27: 956.15 | F27: 956.15
A28: 2110102 | B28: 一般行政管理事务 | D28: 597.99 | E28: 597.99 | G28: 597.99
A29: 2110104 | B29: 生态环境保护宣传 | D29: 48.00 | E29: 48.00 | G29: 48.00
A30: 2110199 | B30: 其他环境保护管理事务支出 | C30: 64.47 | E30: 16.39 | G30: 16.39 | H30: 48.08
A31: 21102 | B31: 环境监测与监察 | D31: 37.86 | E31: 18.21 | G31: 18.21 | H31: 19.65
A32: 2110299 | B32: 其他环境监测与监察支出 | D32: 37.86 | E32: 18.21 | G32: 18.21 | H32: 19.65
A33: 21103 | B33: 污染防治 | C33: 792.22 | D33: 6,704.73 | E33: 4,098.77 | G33: 4,098.77 | H33: 3,398.18
A34: 2110301 | B34: 大气 | C34: 166.40 | D34: 1,668.00 | E34: 667.24 | G34: 667.24 | H34: 1,167.16
A35: 2110302 | B35: 水体 | C35: 625.82 | D35: 4,930.73 | E35: 3,425.53 | G35: 3,425.53 | H35: 2,131.02
A36: 2110303 | B36: 噪声 | D36: 6.00 | E36: 6.00 | G36: 6.00
A37: 2110304 | B37: 固体废弃物与化学品 | D37: 100.00 | E37: 0.00 | H37: 100.00
A38: 21104 | B38: 自然生态保护 | D38: 179.01 | E38: 179.01 | G38: 179.01
A39: 2110402 | B39: 农村环境保护 | D39: 179.01 | E39: 179.01 | G39: 179.01
A40: 21111 | B40: 污染减排 | C40: 259.26 | D40: 1,136.18 | E40: 1,395.44 | F40: 922.73 | G40: 472.71
A41: 2111101 | B41: 生态环境监测与信息 | C41: 259.26 | D41: 1,106.10 | E41: 1,365.36 | F41: 922.73 | G41: 442.63
A42: 2111102 | B42: 生态环境执法监察 | D42: 27.84 | E42: 27.84 | G42: 27.84
A43: 2111104 | B43: 清洁生产专项支出 | D43: 2.24 | E43: 2.24 | G43: 2.24
A44: 21199 | B44: 其他节能环保支出 | C44: 2,469.71 | E44: 1,883.80 | G44: 1,883.80 | H44: 585.91
A45: 2119901 | B45: 其他节能环保支出 | C45: 2,469.71 | E45: 1,883.80 | G45: 1,883.80 | H45: 585.91
A46: 221 | B46: 住房保障支出 | D46: 96.24 | E46: 96.24 | F46: 96.24
A47: 22102 | B47: 住房改革支出 | D47: 96.24 | E47: 96.24 | F47: 96.24
A48: 2210201 | B48: 住房公积金 | D48: 96.24 | E48: 96.24 | F48: 96.24
A49: 备注：本表反映部门本年度一般公共预算财政拨款收支余情况。 | B49: 备注：本表反映部门本年度一般公共预算财政拨款收支余情况。 | C49: 备注：本表反映部门本年度一般公共预算财政拨款收支余情况。 | D49: 备注：本表反映部门本年度一般公共预算财政拨款收支余情况。 | E49: 备注：本表反映部门本年度一般公共预算财政拨款收支余情况。 | F49: 备注：本表反映部门本年度一般公共预算财政拨款收支余情况。 | G49: 备注：本表反映部门本年度一般公共预算财政拨款收支余情况。

Sheet 一般公共预算财政拨款基本支出决算表
A1: 一般公共预算财政拨款基本支出决算表
E2: 公开06表
A3: 公开部门：重庆市江津区生态环境局 | E3: 单位：万元
A4: 经济分类科目（按“款”级经济分类科目 | C4: 一般公共预算基本支出
A5: 科目编码 | B5: 科目名称 | C5: 合计 | D5: 人员经费 | E5: 公用经费
A6: 合计 | C6: =SUM(D6:E6) -> 2,345.98 | D6: =SUM(D7+D21) -> 1,998.20 | E6: =E34+E62 -> 347.78
A7: 301 | B7: 工资福利支出 | C7: =SUM(D7:E7) -> 1,910.14 | D7: 1,910.14
A8: 30101 | B8: 基本工资 | C8: 413.37 | D8: 413.37
A9: 30102 | B9: 津贴补贴 | C9: 195.61 | D9: 195.61
A10: 30103 | B10: 奖金 | C10: 178.03 | D10: 178.03
A11: 30106 | B11: 伙食补助费 | C11: 8.03 | D11: 8.03
A12: 30107 | B12: 绩效工资 | C12: 432.74 | D12: 432.74
A13: 30108 | B13: 机关事业单位基本养老保险费 | C13: 115.43 | D13: 115.43
A14: 30109 | B14: 职业年金缴费 | C14: 63.22 | D14: 63.22
A15: 30110 | B15: 职工基本医疗保险缴费 | C15: 80.14 | D15: 80.14
A16: 30111 | B16: 公务员医疗补助缴费 | C16: 13.04 | D16: 13.04
A17: 30112 | B17: 其他社会保障缴费 | C17: 10.20 | D17: 10.20
A18: 30113 | B18: 住房公积金 | C18: 202.84 | D18: 202.84
A19: 30114 | B19: 医疗费 | C19: 34.12 | D19: 34.12
A20: 30199 | B20: 其他工资福利支出 | C20: 163.37 | D20: 163.37
A21: 303 | B21: 对个人和家庭的补助 | C21: 88.06 | D21: 88.06
A22: 30301 | B22: 离休费 | C22: 0
A23: 30302 | B23: 退休费 | C23: 0
A24: 30303 | B24: 退职（役）费 | C24: 0
A25: 30304 | B25: 抚恤金 | C25: 22.32 | D25: 22.32
A26: 30305 | B26: 生活补助 | C26: 10.62 | D26: 10.62
A27: 30306 | B27: 救济费 | C27: 10.00 | D27: 10.00
A28: 30307 | B28: 医疗费补助 | C28: 0
A29: 30308 | B29: 助学金 | C29: 0
A30: 30309 | B30: 奖励金 | C30: 6.62 | D30: 6.62
A31: 30310 | B31: 个人农业生产补贴 | C31: 0
A32: 30311 | B32: 代缴社会保险费 | C32: 0
A33: 30399 | B33: 其他个人和家庭的补助支出 | C33: 38.50 | D33: 38.50
A34: 302 | B34: 商品和服务支出 | C34: 346.30 | E34: 346.30
A35: 30201 | B35: 办公费 | C35: 7.89 | E35: 7.89
A36: 30202 | B36: 印刷费 | C36: 0.03 | E36: 0.03
A37: 30203 | B37: 咨询费 | C37: 0
A38: 30204 | B38: 手续费 | C38: 0
A39: 30205 | B39: 水费 | C39: 1.17 | E39: 1.17
A40: 30206 | B40: 电费 | C40: 15.63 | E40: 15.63
A41: 30207 | B41: 邮电费 | C41: 22.48 | E41: 22.48
A42: 30208 | B42: 取暖费 | C42: 0
A43: 30209 | B43: 物业管理费 | C43: 7.22 | E43: 7.22
A44: 30211 | B44: 差旅费 | C44: 24.94 | E44: 24.94
A45: 30212 | B45: 因公出国（境）费用 | C45: 0
A46: 30213 | B46: 维修（护）费 | C46: 2.46 | E46: 2.46
A47: 30214 | B47: 租赁费 | C47: 0
A48: 30215 | B48: 会议费 | C48: 0.32 | E48: 0.32
A49: 30216 | B49: 培训费 | C49: 15.10 | E49: 15.10
A50: 30217 | B50: 公务接待费 | C50: 1.93 | E50: 1.93
A51: 30218 | B51: 专用材料费 | C51: 0
A52: 30224 | B52: 被装购置费 | C52: 0
A53: 30225 | B53: 专用燃料费 | C53: 0
A54: 30226 | B54: 劳务费 | C54: 9.91 | E54: 9.91
A55: 30227 | B55: 委托业务费 | C55: 0
A56: 30228 | B56: 工会经费 | C56: 34.55 | E56: 34.55
A57: 30229 | B57: 福利费 | C57: 28.39 | E57: 28.39
A58: 30231 | B58: 公务用车运行维护费 | C58: 10.31 | E58: 10.31
A59: 30239 | B59: 其他交通费用 | C59: 50.32 | E59: 50.32
A60: 30240 | B60: 税金及附加费用 | C60: 10.21 | E60: 10.21
A61: 30299 | B61: 其他商品和服务支出 | C61: 103.44 | E61: 103.44
A62: 310 | B62: 资本性支出 | C62: 1.48 | E62: 1.48
A63: 31001 | B63: 房屋建筑物购建 | C63: 0
A64: 31002 | B64: 办公设备购置 | C64: 1.48 | E64: 1.48
A65: 31003 | B65: 专用设备购置 | C65: 0
A66: 31005 | B66: 基础设施建设 | C66: 0
A67: 31006 | B67: 大型修缮 | C67: 0
A68: 31007 | B68: 信息网络及软件购置更新 | C68: 0
A69: 31008 | B69: 物资储备 | C69: 0
A70: 31009 | B70: 土地补偿 | C70: 0
A71: 31010 | B71: 安置补助 | C71: =SUM(D71:E71) -> 0
A72: 31011 | B72: 地上附着物和青苗补偿 | C72: 0
A73: 31012 | B73: 拆迁补偿 | C73: 0
A74: 31013 | B74: 公务用车购置 | C74: 0
A75: 31019 | B75: 其他交通工具购置 | C75: 0
A76: 31021 | B76: 文物和陈列品购置 | C76: 0
A77: 31022 | B77: 无形资产购置 | C77: 0
A78: 31099 | B78: 其他资本性支出 | C78: 0
A79: 备注：本表反映部门本年度一般公共预算财政拨款基本支出明细情况。

Sheet 政府性基金预算财政拨款收入支出决算表
E1: 政府性基金预算财政拨款收入支出决算表
J2: 公开07表
A3: 公开部门：重庆市江津区生态环境局 | J3: 单位：万元
A4: 项目 | B4: 项目 | C4: 项目 | D4: 项目 | E4: 年初结转和结余 | F4: 本年收入 | G4: 本年支出 | H4: 本年支出 | I4: 本年支出 | J4: 年末结转和结余
A5: 功能分类科目编码 | B5: 功能分类科目编码 | C5: 功能分类科目编码 | D5: 项目（按“项”级功能分类科目） | E5: 年初结转和结余 | F5: 本年收入 | G5: 合计 | H5: 基本支出 | I5: 项目支出 | J5: 年末结转和结余
A6: 功能分类科目编码 | B6: 功能分类科目编码 | C6: 功能分类科目编码 | D6: 项目（按“项”级功能分类科目） | E6: 年初结转和结余 | F6: 本年收入 | G6: 合计 | H6: 基本支出 | I6: 项目支出 | J6: 年末结转和结余
A7: 功能分类科目编码 | B7: 功能分类科目编码 | C7: 功能分类科目编码 | D7: 项目（按“项”级功能分类科目） | E7: 年初结转和结余 | F7: 本年收入 | G7: 合计 | H7: 基本支出 | I7: 项目支出 | J7: 年末结转和结余
A8: 合计 | B8: 合计 | C8: 合计 | D8: 合计
A10: 备注：本表反映部门本年度政府性基金预算财政拨款收入支出及结转和结余情况。本单位无政府性基金收入，也没有使用政府性基金安排的支出，故本表无数据。 | B10: 备注：本表反映部门本年度政府性基金预算财政拨款收入支出及结转和结余情况。 | C10: 备注：本表反映部门本年度政府性基金预算财政拨款收入支出及结转和结余情况。 | D10: 备注：本表反映部门本年度政府性基金预算财政拨款收入支出及结转和结余情况。 | E10: 备注：本表反映部门本年度政府性基金预算财政拨款收入支出及结转和结余情况。 | F10: 备注：本表反映部门本年度政府性基金预算财政拨款收入支出及结转和结余情况。 | G10: 备注：本表反映部门本年度政府性基金预算财政拨款收入支出及结转和结余情况。 | H10: 备注：本表反映部门本年度政府性基金预算财政拨款收入支出及结转和结余情况。 | I10: 备注：本表反映部门本年度政府性基金预算财政拨款收入支出及结转和结余情况。 | J10: 备注：本表反映部门本年度政府性基金预算财政拨款收入支出及结转和结余情况。
B11: 本表为空的部门应将空表公开，并注明：本单位无政府性基金收入，也没有使用政府性基金安排的支出，故本表无数据。 | C11: 本表为空的部门应将空表公开，并注明：本单位无政府性基金收入，也没有使用政府性基金安排的支出，故本表无数据。 | D11: 本表为空的部门应将空表公开，并注明：本单位无政府性基金收入，也没有使用政府性基金安排的支出，故本表无数据。 | E11: 本表为空的部门应将空表公开，并注明：本单位无政府性基金收入，也没有使用政府性基金安排的支出，故本表无数据。 | F11: 本表为空的部门应将空表公开，并注明：本单位无政府性基金收入，也没有使用政府性基金安排的支出，故本表无数据。 | G11: 本表为空的部门应将空表公开，并注明：本单位无政府性基金收入，也没有使用政府性基金安排的支出，故本表无数据。 | H11: 本表为空的部门应将空表公开，并注明：本单位无政府性基金收入，也没有使用政府性基金安排的支出，故本表无数据。 | I11: 本表为空的部门应将空表公开，并注明：本单位无政府性基金收入，也没有使用政府性基金安排的支出，故本表无数据。 | J11: 本表为空的部门应将空表公开，并注明：本单位无政府性基金收入，也没有使用政府性基金安排的支出，故本表无数据。

Sheet 国有资本经营预算财政拨款支出决算表
D1: 国有资本经营预算财政拨款支出决算表
G2: 公开08表
A3: 公开部门：重庆市江津区生态环境局 | G3: 单位：万元
A4: 项目 | B4: 项目 | C4: 项目 | D4: 项目 | E4: 本年支出 | F4: 本年支出 | G4: 本年支出
A5: 功能分类科目编码 | B5: 功能分类科目编码 | C5: 功能分类科目编码 | D5: 科目名称 | E5: 合计 | F5: 基本支出 | G5: 项目支出
A6: 功能分类科目编码 | B6: 功能分类科目编码 | C6: 功能分类科目编码 | D6: 科目名称 | E6: 合计 | F6: 基本支出 | G6: 项目支出
A7: 功能分类科目编码 | B7: 功能分类科目编码 | C7: 功能分类科目编码 | D7: 科目名称 | E7: 合计 | F7: 基本支出 | G7: 项目支出
A8: 合计 | B8: 合计 | C8: 合计 | D8: 合计
A10: 备注：本表反映部门本年度国有资本经营预算财政拨款支出情况。本单位无国有资本经营预算财政拨款支出，故本表无数据 | B10: 备注：本表反映部门本年度国有资本经营预算财政拨款支出情况。 | C10: 备注：本表反映部门本年度国有资本经营预算财政拨款支出情况。 | D10: 备注：本表反映部门本年度国有资本经营预算财政拨款支出情况。 | E10: 备注：本表反映部门本年度国有资本经营预算财政拨款支出情况。 | F10: 备注：本表反映部门本年度国有资本经营预算财政拨款支出情况。 | G10: 备注：本表反映部门本年度国有资本经营预算财政拨款支出情况。

Sheet 机构运行信息表
C1: 机构运行信息表
E2: 公开09表
A3: 公开部门：重庆市江津区生态环境局 | E3: 单位：万元
A4: 项 目 | B4: 预算数 | C4: 决算数 | D4: 项 目 | E4: 决算数
A5: 一、“三公”经费支出 | B5: — | C5: — | D5: 四、机关运行经费 | E5: 347.78
A6: （一）支出合计 | B6: 56.00 | C6: 28.70 | D6: （一）行政单位 | E6: 347.78
A7: 1．因公出国（境）费 | D7: （二）参照公务员法管理事业单位
A8: 2．公务用车购置及运行维护费 | B8: 48.00 | C8: 24.84 | D8: 五、国有资产占用情况 | E8: —
A9: （1）公务用车购置费 | D9: （一）车辆数合计（辆） | E9: 9
A10: （2）公务用车运行维护费 | B10: 48.00 | C10: 24.84 | D10: 1.副部（省）级及以上领导用车
A11: 3．公务接待费 | B11: 8.00 | C11: 3.86 | D11: 2.主要领导干部用车
A12: （1）国内接待费 | B12: — | C12: 3.86 | D12: 3.机要通信用车 | E12: 3
A13: 其中：外事接待费 | B13: — | D13: 4.应急保障用车 | E13: 2
A14: （2）国（境）外接待费 | B14: — | D14: 5.执法执勤用车
A15: （二）相关统计数 | B15: — | C15: — | D15: 6.特种专业技术用车 | E15: 4
A16: 1．因公出国（境）团组数（个） | B16: — | D16: 7.离退休干部用车
A17: 2．因公出国（境）人次数（人） | B17: — | D17: 8.其他用车
A18: 3．公务用车购置数（辆） | B18: — | D18: （二）单价50万元（含）以上通用设备（台，套）
A19: 4．公务用车保有量（辆） | B19: — | C19: 8 | D19: （三）单价100万（含）元以上专用设备（台，套） | E19: 1
A20: 5．国内公务接待批次（个） | B20: — | C20: 32 | D20: 六、政府采购支出信息 | E20: —
A21: 其中：外事接待批次（个） | B21: — | D21: （一）政府采购支出合计 | E21: 2,358.60
A22: 6．国内公务接待人次（人） | B22: — | C22: 453 | D22: 1．政府采购货物支出 | E22: 519.34
A23: 其中：外事接待人次（人） | B23: — | D23: 2．政府采购工程支出
A24: 7．国（境）外公务接待批次（个） | B24: — | D24: 3．政府采购服务支出 | E24: 1,839.26
A25: 8．国（境）外公务接待人次（人） | B25: — | D25: （二）政府采购授予中小企业合同金额 | E25: 2,266.47
A26: 二、会议费 | B26: — | C26: 1.63 | D26: 其中：授予小微企业合同金额 | E26: 2,175.57
A27: 三、培训费 | B27: — | C27: 37.89
A28: 备注：预算数年初部门预算批复数，决算数包括当年财政拨款预算和以前年度结转结余资金安排的实际支出。 | B28: 备注：预算数年初部门预算批复数，决算数包括当年财政拨款预算和以前年度结转结余资金安排的实际支出。 | C28: 备注：预算数年初部门预算批复数，决算数包括当年财政拨款预算和以前年度结转结余资金安排的实际支出。 | D28: 备注：预算数年初部门预算批复数，决算数包括当年财政拨款预算和以前年度结转结余资金安排的实际支出。 | E28: 备注：预算数年初部门预算批复数，决算数包括当年财政拨款预算和以前年度结转结余资金安排的实际支出。
